bitfinex-derivatives/quotes_SOLF0:USTF0_20251125
["timestamp","ask_amount","ask_price","bid_price","bid_amount"]
[1764076154781,0.05111769,135.83,135.82,0.71]
[1764076155977,0.05111769,135.83,135.82,7.3391]
[1764076157974,0.05111769,135.83,135.82,0.71]
[1764076158182,0.05111769,135.83,135.81,0.71]
[1764076159074,0.05111769,135.83,135.81,7.3395]
[1764076159272,0.05111769,135.83,135.81,6.6295]
[1764076159479,0.05111769,135.83,135.82,0.71]
[1764076162288,0.05111769,135.83,135.81,0.71]
[1764076163192,0.05111769,135.83,135.81,7.3395]
[1764076163387,31.71,135.88,135.82,0.71]
[1764076163688,31.71,135.88,135.87,0.71]
[1764076164091,3.02,135.95,135.87,0.71]
[1764076164385,0.04761968,135.92,135.9,0.0511617]
[1764076164692,3.06761968,135.92,135.9,0.0511617]
[1764076166382,0.04761968,135.92,135.9,0.7611617]
[1764076166584,0.04761968,135.92,135.91,62.0]
[1764076166787,0.04761968,135.92,135.91,62.71]
[1764076166982,0.04761968,135.92,135.9,0.0511617]
[1764076166983,3.06761968,135.92,135.9,0.0511617]
[1764076171885,3.02,135.91,135.9,0.0511617]
[1764076175399,3.02,135.91,135.86,32.597]
[1764076175400,3.02,135.9,135.87,62.0]
[1764076175700,3.02,135.9,135.83,3.33714928]
[1764076175701,3.02,135.9,135.84,0.71]
[1764076176410,30.53,135.97,135.86,0.05246702]
[1764076176595,3.02,135.95,135.89,0.65]
[1764076176800,3.02,135.95,135.9,0.65]
[1764076177413,3.02,135.95,135.91,0.65]
[1764076177709,0.05163053,135.94,135.92,0.70495896]
[1764076178109,0.05163053,135.94,135.93,0.65]
[1764076178614,0.05163053,135.94,135.93,62.65]
[1764076182513,0.05163053,135.94,135.93,62.0]
[1764076183018,0.05163053,135.94,135.93,62.65]
[1764076183412,0.05163053,135.94,135.93,85.16163076]
[1764076186017,30.53,135.97,135.95,0.65]
[1764076186326,33.55,135.97,135.94,0.65]
[1764076187022,33.59936694,135.97,135.94,0.65]
[1764076187619,3.01,135.96,135.93,29.13513076]
[1764076187819,3.01,135.96,135.93,22.51163076]
[1764076188013,3.01,135.96,135.92,25.29495896]
[1764076188412,3.01,135.96,135.92,0.05495896]
[1764076189122,3.01,135.96,135.92,62.05495896]
[1764076190429,3.01,135.96,135.92,68.67905896]
[1764076190617,30.57936694,135.97,135.93,0.66]
[1764076190618,33.58936694,135.97,135.93,0.66]
[1764076191012,33.58936694,135.97,135.93,7.2837]
[1764076191222,3.01,135.96,135.93,7.2837]
[1764076191627,3.01,135.96,135.92,0.05495896]
[1764076192019,3.01,135.95,135.92,0.05495896]
[1764076193427,3.01,135.93,135.92,0.05495896]
[1764076193829,3.01,135.93,135.87,62.71]
[1764076194021,3.01,135.92,135.88,0.71]
[1764076194825,3.01,135.92,135.89,0.05152683]
[1764076199636,3.01,135.92,135.89,7.38702683]
[1764076200135,3.01,135.92,135.9,6.6251]
[1764076200326,3.21834885,135.94,135.9,0.71]
[1764076200833,0.04834885,135.94,135.92,7.3341]
[1764076201838,0.04834885,135.94,135.93,0.71]
[1764076202229,0.04834885,135.94,135.93,7.3337]
[1764076202538,30.53,135.97,135.94,0.71]
[1764076202723,30.53,135.97,135.94,7.3331]
[1764076202924,30.53,135.97,135.95,0.71]
[1764076204433,30.58603851,135.97,135.96,0.71]
[1764076205338,33.75603851,135.97,135.95,0.05592445]
[1764076205643,30.58603851,135.97,135.96,62.0]
[1764076206041,0.05603851,135.97,135.96,62.0]
[1764076206436,3.22603851,135.97,135.96,62.0]
[1764076207430,0.05603851,135.97,135.96,62.0]
[1764076208941,0.05603851,135.97,135.96,62.71]
[1764076210443,0.05603851,135.97,135.96,84.82827514]
[1764076211650,20.44,136.01,135.99,7.3305]
[1764076212051,20.44,136.01,136.0,0.71]
[1764076212545,23.61,136.01,135.98,0.71]
[1764076212745,23.66497014,136.01,135.98,25.29256528]
[1764076213452,0.05497014,136.01,135.99,0.71]
[1764076213649,3.22497014,136.01,135.98,32.62376528]
[1764076214447,0.05497014,136.01,136.0,0.71]
[1764076214848,0.05497014,136.01,136.0,62.71]
[1764076215350,0.05497014,136.01,136.0,62.0]
[1764076218150,3.17497014,136.01,135.98,0.05256528]
[1764076221357,3.12,136.0,135.98,0.05256528]
[1764076231665,0.05497014,136.01,135.98,0.76256528]
[1764076231865,0.05497014,136.01,135.99,0.71]
[1764076235056,0.05497014,136.01,135.98,28.13214985]
[1764076235057,3.17497014,136.01,135.98,28.13214985]
[1764076235364,3.17497014,136.01,135.98,2.89214985]
[1764076235565,3.17497014,136.01,135.98,28.13214985]
[1764076235863,3.17497014,136.01,135.98,34.75334985]
[1764076236766,3.17497014,136.01,135.98,28.13214985]
[1764076237268,3.17497014,136.01,135.99,0.71]
[1764076240370,3.17497014,136.01,135.98,2.18214985]
[1764076240558,3.17497014,136.01,135.98,0.05256528]
[1764076240762,3.12,135.99,135.92,2.12958457]
[1764076240963,3.12,135.95,135.88,2.12958457]
[1764076241157,3.12,135.95,135.86,2.12958457]
[1764076241158,3.12,135.93,135.86,2.12958457]
[1764076241473,3.12,135.93,135.86,2.88958457]
[1764076241664,3.12,135.93,135.88,2.88958457]
[1764076241966,0.05633703,135.91,135.88,2.94422977]
[1764076242164,3.17633703,135.91,135.88,2.94422977]
[1764076242360,3.17633703,135.91,135.88,0.0546452]
[1764076243463,3.17633703,135.91,135.88,0.8146452]
[1764076243670,3.17633703,135.91,135.89,62.0]
[1764076249665,3.17633703,135.91,135.88,0.0546452]
[1764076249872,3.1,135.89,135.84,22.45586726]
[1764076250074,3.1,135.88,135.81,26.01]
[1764076250271,3.1,135.92,135.85,0.77]
[1764076250469,3.1,135.92,135.89,0.77]
[1764076250866,3.15444924,135.92,135.89,0.05234166]
[1764076251058,3.15444924,135.92,135.89,0.82234166]
[1764076252371,0.05444924,135.92,135.89,0.82234166]
[1764076252668,0.05444924,135.92,135.9,62.0]
[1764076253073,3.15444924,135.92,135.9,62.0]
[1764076253963,0.05444924,135.92,135.91,0.77]
[1764076254473,29.87,135.95,135.91,0.77]
[1764076254774,29.87,135.95,135.93,2.89958457]
[1764076254966,29.87,135.95,135.93,28.13958457]
[1764076255569,3.1,135.94,135.93,0.04821863]
[1764076257570,32.86112341,135.95,135.93,62.04821863]
[1764076259670,2.94,135.94,135.89,28.2]
[1764076260474,2.94,135.94,135.9,62.05367105]
[1764076260670,2.94,135.94,135.9,65.01367105]
[1764076261776,2.94,135.94,135.91,5.08958457]
[1764076262281,2.94,135.94,135.91,2.12958457]
[1764076262468,2.94,135.94,135.9,28.25367105]
[1764076262669,2.94,135.94,135.9,0.05367105]
[1764076262879,2.94,135.93,135.9,0.05367105]
[1764076263076,2.94,135.91,135.9,0.05367105]
[1764076263277,2.94,135.88,135.82,8.75818457]
[1764076263478,2.94,135.88,135.83,2.96]
[1764076263884,2.94,135.88,135.85,2.96]
[1764076264282,2.99622774,135.88,135.85,3.00746506]
[1764076264883,2.99622774,135.88,135.86,62.0]
[1764076266078,0.05622774,135.88,135.87,28.2]
[1764076266283,23.6,135.89,135.88,2.96]
[1764076266478,2.94,135.94,135.87,25.24]
[1764076266678,2.94,135.94,135.88,2.96]
[1764076267483,0.04726813,135.92,135.9,0.05107484]
[1764076268086,0.04726813,135.92,135.9,3.01107484]
[1764076269286,29.87,135.95,135.9,3.01107484]
[1764076269287,29.87,135.95,135.92,2.96]
[1764076269585,102.9789,136.01,135.91,62.0]
[1764076269586,2.94,135.94,135.91,62.0]
[1764076269781,2.94,135.94,135.9,28.22]
[1764076270178,0.05045869,135.93,135.91,0.04700772]
[1764076270374,0.05045869,135.93,135.91,3.00700772]
[1764076270578,2.99045869,135.93,135.91,0.04700772]
[1764076270978,0.05045869,135.93,135.91,0.04700772]
[1764076271286,2.99045869,135.93,135.91,0.04700772]
[1764076271477,0.05045869,135.93,135.91,0.04700772]
[1764076272682,0.05045869,135.93,135.92,62.0]
[1764076273990,2.99045869,135.93,135.92,62.0]
[1764076274186,2.99045869,135.93,135.91,0.04700772]
[1764076277486,6.6242,135.92,135.91,0.04700772]
[1764076277685,3.06,135.91,135.86,9.587]
[1764076278588,3.06,135.89,135.87,0.04758476]
[1764076280386,3.06,135.89,135.79,206.2767]
[1764076280387,3.06,135.88,135.8,3.08]
[1764076280586,3.06,135.86,135.81,62.0]
[1764076280888,3.06,135.85,135.81,62.0]
[1764076281494,3.10780092,135.84,135.82,0.05353448]
[1764076281695,0.04780092,135.84,135.82,3.13353448]
[1764076282095,0.04780092,135.84,135.83,3.08]
[1764076284698,0.04780092,135.84,135.83,65.08]
[1764076285100,3.10780092,135.84,135.83,62.0]
[1764076285300,3.10780092,135.84,135.82,0.05353448]
[1764076285605,6.6286,135.83,135.82,0.05353448]
[1764076285904,9.6886,135.83,135.82,0.05353448]
[1764076286298,3.06,135.82,135.76,3.08]
[1764076286505,29.37,135.85,135.78,3.08]
[1764076286900,35.9977,135.85,135.79,9.7104]
[1764076287304,0.05216258,135.83,135.81,0.04822073]
[1764076287500,3.11216258,135.83,135.81,0.04822073]
[1764076288294,3.11216258,135.83,135.82,62.0]
[1764076289509,3.11216258,135.83,135.81,0.04822073]
[1764076290009,3.06,135.82,135.81,0.04822073]
[1764076290198,3.06,135.82,135.76,31.89370235]
[1764076290393,9.6892,135.82,135.76,31.89370235]
[1764076290707,0.05216258,135.83,135.76,31.89370235]
[1764076290708,3.11216258,135.83,135.78,3.08]
[1764076291408,3.11216258,135.83,135.79,3.1295349]
[1764076292507,3.11216258,135.83,135.8,65.08]
[1764076292808,3.11216258,135.83,135.8,62.0]
[1764076294910,3.06,135.82,135.8,62.0]
[1764076295406,3.06,135.82,135.79,0.0495349]
[1764076295407,3.06,135.81,135.79,0.0495349]
[1764076295607,0.05216258,135.83,135.79,0.0495349]
[1764076295803,3.06,135.82,135.79,0.0495349]
[1764076296002,9.6891,135.82,135.79,0.0495349]
[1764076296205,3.06,135.81,135.79,0.0495349]
[1764076297305,3.11216258,135.83,135.79,3.1295349]
[1764076297911,9.6891,135.82,135.79,0.0495349]
[1764076298109,3.06,135.81,135.79,0.0495349]
[1764076298310,3.06,135.81,135.8,62.0]
[1764076299203,9.6891,135.82,135.8,62.0]
[1764076299506,3.06,135.81,135.8,62.0]
[1764076301017,0.05216258,135.83,135.81,3.08]
[1764076304205,0.05216258,135.83,135.82,65.08]
[1764076311022,0.05216258,135.83,135.82,65.1]
[1764076312619,3.04216258,135.83,135.82,62.0]
[1764076312810,0.05216258,135.83,135.82,62.0]
[1764076313722,6.68076258,135.83,135.82,62.0]
[1764076314826,0.05216258,135.83,135.82,65.1]
[1764076318924,6.68076258,135.83,135.82,62.0]
[1764076319331,6.68076258,135.83,135.82,64.98]
[1764076320228,2.98,135.89,135.83,2.98]
[1764076320924,20.86,135.9,135.86,2.98]
[1764076321229,0.04781448,135.89,135.87,3.03653689]
[1764076321430,9.65351448,135.89,135.87,0.05653689]
[1764076322028,0.04781448,135.89,135.88,2.98]
[1764076322229,106.0042,135.95,135.88,2.98]
[1764076322415,2.98,135.94,135.88,2.98]
[1764076322816,6.6236,135.94,135.88,2.98]
[1764076323028,2.98,135.97,135.9,2.98]
[1764076323230,0.04762927,135.95,135.93,2.98]
[1764076323530,6.67042927,135.95,135.93,2.98]
[1764076323732,0.04762927,135.95,135.93,2.98]
[1764076325026,6.6234,135.94,135.92,3.02989185]
[1764076325231,9.6034,135.94,135.92,0.04989185]
[1764076325622,6.6234,135.94,135.92,3.02989185]
[1764076325928,6.6234,135.94,135.93,62.0]
[1764076326124,6.6234,135.94,135.92,3.02989185]
[1764076327428,3.02762927,135.95,135.92,3.02989185]
[1764076327631,3.02762927,135.95,135.92,0.04989185]
[1764076329226,3.02762927,135.95,135.92,62.04989185]
[1764076329421,9.65042927,135.95,135.92,62.04989185]
[1764076329632,9.65042927,135.95,135.92,0.04989185]
[1764076329832,9.65042927,135.95,135.92,3.02989185]
[1764076330033,3.02762927,135.95,135.92,3.02989185]
[1764076332236,9.65042927,135.95,135.92,0.04989185]
[1764076332433,2.98,135.94,135.92,0.04989185]
[1764076334931,9.6033,135.94,135.92,0.04989185]
[1764076335140,2.98,135.93,135.92,0.04989185]
[1764076339151,2.99,135.91,135.88,22.48238338]
[1764076339442,2.99,135.91,135.85,3.02]
[1764076339443,2.99,135.9,135.85,3.02]
[1764076339845,2.99,135.9,135.85,25.0722602]
[1764076340040,2.99,135.9,135.86,3.02]
[1764076340241,3.0437727,135.89,135.86,3.06807433]
[1764076340542,9.6694727,135.89,135.86,3.06807433]
[1764076342041,3.0437727,135.89,135.87,62.0]
[1764076342345,0.0537727,135.89,135.87,65.02]
[1764076343741,3.0437727,135.89,135.87,62.0]
[1764076344040,9.6693727,135.89,135.87,62.0]
[1764076344348,9.6693727,135.89,135.86,0.04807433]
[1764076344349,2.99,135.88,135.86,0.04807433]
[1764076345648,2.99,135.88,135.86,3.06807433]
[1764076347242,2.99,135.88,135.86,65.06807433]
[1764076351150,0.0537727,135.89,135.87,3.02]
[1764076351462,20.71,135.94,135.89,3.02]
[1764076351749,122.98076476,136.03,135.89,3.02]
[1764076351750,2.99,136.1,135.98,102.9948]
[1764076351953,9.6066,136.08,136.0,2.13319194]
[1764076352258,2.99,136.06,135.99,2.13319194]
[1764076352549,3.04163502,136.04,136.02,2.13319194]
[1764076352745,102.9266,136.08,136.02,2.13319194]
[1764076353054,105.01379194,136.14,136.06,2.13319194]
[1764076353349,102.9011,136.11,136.06,2.13319194]
[1764076353648,6.6157,136.1,136.06,2.13319194]
[1764076353850,0.05589231,136.09,136.07,0.04777704]
[1764076354057,0.05263551,136.09,136.07,0.04777704]
[1764076354742,3.04263551,136.09,136.07,0.04777704]
[1764076355449,0.05263551,136.09,136.07,0.04777704]
[1764076355654,0.05263551,136.09,136.07,5.11306879]
[1764076361158,0.05263551,136.09,136.07,22.36866841]
[1764076361353,3.04263551,136.09,136.07,0.04777704]
[1764076363249,0.05263551,136.09,136.07,0.04777704]
[1764076365563,0.05263551,136.09,136.07,21.58590476]
[1764076365858,3.04263551,136.09,136.07,21.58590476]
[1764076366366,0.05263551,136.09,136.07,21.58590476]
[1764076368458,2.95263551,136.09,136.07,21.58590476]
[1764076376570,2.95263551,136.09,136.08,2.1274555]
[1764076377761,0.05263551,136.09,136.08,2.1274555]
[1764076380268,6.66863551,136.09,136.07,21.58590476]
[1764076380466,3.14,136.08,136.07,21.58590476]
[1764076380770,0.05263551,136.09,136.08,2.1274555]
[1764076380970,3.14,136.13,136.08,8.7438555]
[1764076381166,3.14,136.13,136.11,2.1274555]
[1764076381469,9.754,136.13,136.11,2.1274555]
[1764076381767,3.14,136.16,136.11,2.1274555]
[1764076381975,0.05490062,136.13,136.11,2.17576523]
[1764076382275,0.05490062,136.13,136.12,6.6143]
[1764076383169,0.05490062,136.13,136.12,8.7417555]
[1764076386077,3.14,136.16,136.12,8.7417555]
[1764076386267,3.14,136.16,136.15,2.1274555]
[1764076390678,29.24691399,136.17,136.15,2.1274555]
[1764076391980,32.38691399,136.17,136.15,2.1274555]
[1764076392177,3.14,136.16,136.14,0.05221239]
[1764076392366,3.14,136.16,136.15,2.1274555]
[1764076399285,29.24691399,136.17,136.15,2.1274555]
[1764076400480,29.24691399,136.17,136.14,22.28949038]
[1764076400782,29.24691399,136.17,136.15,3.3195546]
[1764076402486,29.24691399,136.17,136.15,9.9325546]
[1764076402985,29.24691399,136.17,136.15,3.3195546]
[1764076406287,32.39691399,136.17,136.15,3.3195546]
[1764076407585,29.24691399,136.17,136.15,3.3195546]
[1764076408985,32.39691399,136.17,136.15,3.3195546]
[1764076411193,29.24691399,136.17,136.15,3.3195546]
[1764076412287,29.24691399,136.17,136.16,6.6125]
[1764076412493,3.15,136.2,136.15,3.3195546]
[1764076412684,3.15,136.2,136.17,3.3195546]
[1764076413590,3.19674551,136.2,136.17,3.36793341]
[1764076413993,0.04674551,136.2,136.19,3.3195546]
[1764076414388,3.19674551,136.2,136.19,3.3195546]
[1764076415385,0.04674551,136.2,136.19,9.9305546]
[1764076415593,3.15,136.25,136.19,3.3195546]
[1764076415786,3.15,136.25,136.21,3.3195546]
[1764076415991,19.02,136.26,136.23,9.9285546]
[1764076416190,19.02,136.26,136.25,3.3195546]
[1764076416491,3.15,136.31,136.25,3.3195546]
[1764076416795,3.15,136.31,136.24,102.7955]
[1764076416796,0.04804878,136.27,136.26,6.6076]
[1764076416997,3.15,136.34,136.27,102.7779]
[1764076417497,3.15,136.34,136.27,128.0179]
[1764076417890,3.15,136.34,136.31,3.3195546]
[1764076418091,3.19819171,136.34,136.31,3.37062085]
[1764076418293,3.15,136.33,136.26,62.0]
[1764076418688,3.15,136.3,136.26,62.0]
[1764076418894,3.15,136.3,136.27,3.3195546]
[1764076419295,3.15,136.3,136.29,3.3195546]
[1764076419296,0.04870012,136.3,136.29,3.3195546]
[1764076419685,0.04870012,136.3,136.27,0.05053082]
[1764076419686,0.04870012,136.3,136.27,3.37008542]
[1764076419885,3.19870012,136.3,136.27,3.37008542]
[1764076421698,0.04870012,136.3,136.27,3.37008542]
[1764076421902,0.04870012,136.3,136.29,3.3195546]
[1764076424502,3.15,136.35,136.29,3.3195546]
[1764076424798,3.15,136.35,136.31,3.3195546]
[1764076425499,102.6911,136.39,136.32,0.05643024]
[1764076425500,3.19823385,136.34,136.32,0.05643024]
[1764076425693,3.20121405,136.34,136.32,0.05643024]
[1764076426196,0.05121405,136.34,136.32,0.05643024]
[1764076426597,3.20121405,136.34,136.32,0.05643024]
[1764076427697,0.05121405,136.34,136.32,0.05643024]
[1764076428001,3.18121405,136.34,136.32,0.05643024]
[1764076428196,0.05121405,136.34,136.32,0.05643024]
[1764076428700,102.6542,136.44,136.33,3.3195546]
[1764076428904,3.13,136.4,136.35,3.3195546]
[1764076429206,3.13,136.39,136.35,3.3195546]
[1764076429498,3.13,136.39,136.32,25.22]
[1764076429499,3.13,136.43,136.33,102.7306]
[1764076429700,3.13,136.43,136.37,3.37269665]
[1764076429900,0.05600688,136.39,136.37,3.37269665]
[1764076431910,0.05600688,136.39,136.38,62.0]
[1764076434311,3.18600688,136.39,136.38,62.0]
[1764076434503,3.18600688,136.39,136.37,0.05314205]
[1764076434907,0.05600688,136.39,136.37,3.37269665]
[1764076436011,0.05600688,136.39,136.37,9.97489665]
[1764076436310,3.13,136.42,136.37,3.37269665]
[1764076436509,3.13,136.44,136.4,3.3195546]
[1764076436700,3.13,136.49,136.42,3.3195546]
[1764076437413,3.13,136.46,136.44,0.05204728]
[1764076438605,9.728,136.46,136.44,0.05204728]
[1764076438804,3.12,136.45,136.44,0.05204728]
[1764076439007,3.12,136.45,136.39,62.0]
[1764076439206,3.12,136.45,136.39,3.3195546]
[1764076440209,3.17638091,136.43,136.41,0.04699128]
[1764076441106,0.05638091,136.43,136.41,3.36654588]
[1764076441509,0.05638091,136.43,136.41,0.04699128]
[1764076441510,3.17638091,136.43,136.41,0.04699128]
[1764076443713,3.12,136.42,136.37,25.29345667]
[1764076444410,3.12,136.41,136.37,25.29345667]
[1764076444916,3.12,136.41,136.38,0.05172139]
[1764076449319,3.17638091,136.43,136.39,3.3195546]
[1764076450017,3.17638091,136.43,136.39,9.9208546]
[1764076450613,3.17638091,136.43,136.41,3.3195546]
[1764076453317,3.17638091,136.43,136.39,3.3195546]
[1764076454020,3.12,136.42,136.38,9.97287599]
[1764076454828,3.12,136.42,136.39,6.6012]
[1764076456231,3.17638091,136.43,136.4,3.3195546]
[1764076456530,3.17638091,136.43,136.4,9.9203546]
[1764076456924,3.17638091,136.43,136.38,6.65312139]
[1764076457126,3.17638091,136.43,136.38,0.05172139]
[1764076457832,3.14,136.41,136.38,0.05172139]
[1764076458930,3.14,136.42,136.38,6.65352139]
[1764076459141,3.14,136.42,136.39,3.3195546]
[1764076459537,3.14,136.42,136.39,9.9207546]
[1764076460247,3.14,136.42,136.39,71.9207546]
[1764076460941,3.14,136.41,136.38,0.05172139]
[1764076462342,3.14,136.4,136.38,0.05172139]
[1764076462638,3.14,136.4,136.38,2.16955644]
[1764076463038,3.14,136.4,136.38,0.05172139]
[1764076463638,9.7409,136.4,136.38,0.05172139]
[1764076463936,3.14,136.4,136.35,2.11783505]
[1764076464240,3.14,136.38,136.35,2.11783505]
[1764076464832,3.19277895,136.38,136.35,2.17341544]
[1764076465540,3.14,136.37,136.35,2.17341544]
[1764076466241,0.05277895,136.38,136.35,2.17341544]
[1764076466445,0.05277895,136.38,136.37,2.11783505]
[1764076466942,0.05277895,136.38,136.37,64.11783505]
[1764076467337,0.05277895,136.38,136.37,70.72013505]
[1764076467935,3.14,136.43,136.38,6.6016]
[1764076468134,3.14,136.43,136.39,2.11783505]
[1764076468938,0.0530227,136.42,136.4,0.05100161]
[1764076469144,3.14,136.41,136.4,0.05100161]
[1764076473751,9.7404,136.41,136.4,0.05100161]
[1764076476448,3.14,136.38,136.35,22.30586072]
[1764076476751,3.14,136.38,136.32,2.11783505]
[1764076477047,9.7418,136.38,136.33,6.6042]
[1764076477248,3.14,136.37,136.32,2.11783505]
[1764076477547,3.19361983,136.36,136.33,62.05452818]
[1764076477754,3.19361983,136.36,136.33,68.65872818]
[1764076480044,3.19361983,136.36,136.33,62.05452818]
[1764076480852,3.19361983,136.36,136.33,68.65872818]
[1764076481149,0.05361983,136.36,136.34,2.11783505]
[1764076481354,3.19361983,136.36,136.34,2.11783505]
[1764076481556,3.19361983,136.36,136.34,8.72153505]
[1764076481956,3.19361983,136.36,136.34,2.11783505]
[1764076485262,3.19361983,136.36,136.34,8.72133505]
[1764076485452,0.05361983,136.36,136.34,8.72133505]
[1764076485655,3.19361983,136.36,136.34,8.72133505]
[1764076486353,0.05361983,136.36,136.34,8.72133505]
[1764076487459,2.98361983,136.36,136.34,8.72133505]
[1764076487858,0.05361983,136.36,136.34,8.72133505]
[1764076488657,2.98361983,136.36,136.34,8.72133505]
[1764076490067,0.05361983,136.36,136.34,8.72133505]
[1764076490860,2.98361983,136.36,136.34,8.72133505]
[1764076491965,2.98361983,136.36,136.33,64.17236323]
[1764076493365,2.98361983,136.36,136.33,70.77656323]
[1764076498571,2.98361983,136.36,136.35,2.11783505]
[1764076498962,0.05361983,136.36,136.35,2.11783505]
[1764076499962,0.05361983,136.36,136.35,8.72113505]
[1764076500259,3.14,136.4,136.35,2.11783505]
[1764076500459,3.14,136.39,136.33,64.11783505]
[1764076500659,3.14,136.4,136.35,2.11783505]
[1764076500858,109.44688005,136.44,136.39,2.11783505]
[1764076500859,3.14,136.44,136.39,2.11783505]
[1764076501066,3.14,136.42,136.39,2.11783505]
[1764076501259,3.191349,136.42,136.39,2.17166944]
[1764076501456,3.14,136.41,136.39,2.17166944]
[1764076502062,3.14,136.4,136.39,2.17166944]
[1764076502768,3.14,136.4,136.39,0.05383439]
[1764076503474,3.14,136.4,136.39,2.17166944]
[1764076504373,3.14,136.41,136.39,2.17166944]
[1764076504673,0.051349,136.42,136.39,2.17166944]
[1764076505276,3.191349,136.42,136.39,2.17166944]
[1764076505664,3.191349,136.42,136.39,0.05383439]
[1764076507673,3.191349,136.42,136.39,6.65513439]
[1764076507885,3.191349,136.42,136.39,0.05383439]
[1764076508373,0.051349,136.42,136.39,2.17166944]
[1764076508763,0.051349,136.42,136.41,6.6004]
[1764076509470,3.191349,136.42,136.39,0.05383439]
[1764076511066,0.051349,136.42,136.39,0.05383439]
[1764076511268,0.051349,136.42,136.4,2.11783505]
[1764076511672,0.051349,136.42,136.4,8.71873505]
[1764076511978,3.14,136.47,136.4,2.11783505]
[1764076512169,3.14,136.46,136.43,6.5994]
[1764076512775,3.1959702,136.46,136.43,6.65074183]
[1764076512975,3.1959702,136.46,136.43,0.05134183]
[1764076513482,3.14,136.45,136.43,0.05134183]
[1764076514079,3.14,136.44,136.43,0.05134183]
[1764076516782,3.1959702,136.46,136.43,0.05134183]
[1764076517081,3.1959702,136.46,136.44,2.11783505]
[1764076517282,2.96,136.45,136.43,2.16917688]
[1764076518978,2.96,136.45,136.43,0.05134183]
[1764076520087,9.5588,136.45,136.43,0.05134183]
[1764076520383,2.91,136.44,136.43,0.05134183]
[1764076522084,9.5089,136.44,136.43,0.05134183]
[1764076522282,2.91,136.43,136.4,2.11783505]
[1764076522784,2.91,136.43,136.41,62.0]
[1764076523185,9.55837975,136.43,136.41,0.05058938]
[1764076523374,2.95897975,136.43,136.41,0.05058938]
[1764076524284,2.91,136.42,136.41,0.05058938]
[1764076526192,9.5099,136.42,136.41,0.05058938]
[1764076529884,2.91,136.4,136.37,22.19267428]
[1764076530088,2.91,136.4,136.35,3.30756715]
[1764076530484,2.91,136.37,136.33,25.16]
[1764076530977,0.05601497,136.36,136.34,6.65243222]
[1764076531177,0.05173122,136.36,136.35,3.30756715]
[1764076531484,2.91,136.4,136.35,3.30756715]
[1764076532378,2.95741256,136.39,136.35,9.91086715]
[1764076532981,2.95741256,136.39,136.36,62.0]
[1764076534387,2.95741256,136.39,136.36,68.6028]
[1764076535288,0.04741256,136.39,136.37,6.6023]
[1764076535490,0.04741256,136.39,136.36,62.0]
[1764076535992,2.95741256,136.39,136.36,62.0]
[1764076538496,2.95741256,136.39,136.36,68.6028]
[1764076538692,2.95741256,136.39,136.36,62.0]
[1764076538693,0.04741256,136.39,136.36,62.0]
[1764076539087,0.04741256,136.39,136.37,6.6023]
[1764076539393,17.89,136.42,136.36,65.30756715]
[1764076539986,17.89,136.42,136.36,168.01296715]
[1764076540387,0.05479536,136.4,136.38,0.04756688]
[1764076540589,17.89,136.42,136.38,28.51513403]
[1764076541696,0.04637849,136.41,136.38,28.51513403]
[1764076541895,17.89,136.42,136.4,6.6005]
[1764076542090,17.89,136.42,136.4,3.30756715]
[1764076542289,2.91,136.48,136.45,6.5984]
[1764076542886,2.91,136.48,136.45,6.65407005]
[1764076543194,2.91,136.48,136.45,0.05567005]
[1764076544481,6.5976,136.47,136.45,0.05567005]
[1764076544687,2.91,136.46,136.45,0.05567005]
[1764076546396,2.91,136.48,136.45,0.05567005]
[1764076546890,26.09,136.49,136.46,6.5979]
[1764076547091,29.18,136.49,136.45,0.05567005]
[1764076548401,29.18,136.49,136.45,6.65387005]
[1764076550302,26.09,136.49,136.45,6.65387005]
[1764076552003,29.18,136.49,136.45,6.65387005]
[1764076553905,26.09,136.49,136.46,6.5978]
[1764076554405,26.09,136.49,136.45,0.05567005]